Cogmind - Beta 17 @@@ ROGUE MODE // 2026.07.31 @ 21:36:30 Player: AL-EF0 Result: Destroyed by exploding Nuclear Reactor Performance ------------- Evolutions (0) 0 Regions Visited (1) 200 Robots Destroyed (19) 95 Value Destroyed (424) 424 Prototype IDs (3) 60 Alien Tech Used (0) 0 Bonus (0) 0 TOTAL SCORE: 779 Bonus ------- None Cogmind --------- Core Integrity 0/250 Matter 300/300 Energy 124/125 System Corruption 9% Temperature Cool (0) Movement Core (800) Ox15 Location -10/Materials Parts ------- > --- POWER (1) -------- Light Ion Engine > --- PROPULSION (2) --- Aluminum Leg > --- UTILITY (2) ------ Improved Heat Sink High-capacity Storage Unit > --- WEAPON (2) ------- Particle Gun > --- INVENTORY (20) --- Ion Engine Aluminum Leg Aluminum Leg Aluminum Leg Improved Heat Sink Small Storage Unit Medium Storage Unit Large Storage Unit High-capacity Matter Pod (200) Structural Scanner EM Pulse Gun EM Pulse Gun Medium Laser Light Assault Rifle Datajack Mining Claw Peak State ------------ > --- POWER ------------ Ion Engine > --- PROPULSION ------- Light Treads Wheel > --- UTILITY ---------- Improved Heat Sink High-capacity Storage Unit > --- WEAPON ----------- Particle Gun Light Assault Rifle > --- INVENTORY -------- Ion Engine Light Ion Engine Aluminum Leg Aluminum Leg Aluminum Leg Improved Heat Sink Small Storage Unit Medium Storage Unit Large Storage Unit High-capacity Matter Pod Structural Scanner EM Pulse Gun EM Pulse Gun Medium Laser Light Assault Rifle Datajack Mining Claw Mining Claw [Rating: 12] Favorites ----------- Power Ion Engine Engine Ion Engine Propulsion Wheel Treads Light Treads Leg Aluminum Leg Wheel Wheel Utility High-capacity Storage Unit Device Seismic Detector Storage High-capacity Storage Unit Weapon Light Assault Rifle Energy Gun Particle Gun Ballistic Gun Light Assault Rifle Build | -11 -10 ------- Run | Yrd Mat Slots Evolved . | . . Power . | . . Propulsion . | . . Utility . | . . Weapon . | . . Parts Attached 16 | 7 9 Power 3 | 1 2 Engine 3 | 1 2 Core . | . . Reactor . | . . Propulsion 6 | 2 4 Treads 2 | . 2 Leg 1 | . 1 Wheel 3 | 2 1 Hover . | . . Flight . | . . Utility 4 | 2 2 Device 2 | 1 1 Storage 2 | 1 1 Processor . | . . Hackware . | . . Protection . | . . Artifact . | . . Weapon 3 | 2 1 Energy Gun 1 | . 1 Energy Cannon . | . . Ballistic Gun 2 | 2 . Ballistic Cannon . | . . Launcher . | . . Special Weapon . | . . Impact Weapon . | . . Slashing Weapon . | . . Piercing Weapon . | . . Special Melee Weapon . | . . Unidentified Prototypes . | . . Parts Lost 8 | . 8 Power 2 | . 2 Propulsion 4 | . 4 Utility . | . . Weapon 2 | . 2 Highest Loss Streak 3 | . 3 To Critical Strikes . | . . Average Backups 14 | 2 15 Power 1 | . 1 Propulsion 3 | 1 4 Utility 4 | . 4 Weapon 4 | . 4 Tool/Special . | . . Unused Backups 17 | . 17 Power 2 | . 2 Propulsion 3 | . 3 Utility 5 | . 5 Weapon 6 | . 6 Tool/Special 1 | . 1 Average Slot Usage (%) 98 | . 98 Engine 13 | . 13 Treads 6 | . 6 Wheel 20 | . 20 Device 10 | . 10 Storage 16 | . 16 Energy Gun 1 | . 1 Ballistic Gun 26 | . 26 Peak Build Rating 12 | 7 12 Average Rating 8 | 5 8 On Entrance 3 | . 7 Avg Prop Armor Cover (%) 11 | 20 11 Naked Turns . | . . Heaviest Build 53 | 14 53 Greatest Support 40 | 20 40 Greatest Overweight (x) 5 | . 5 Average Overweight (x) 2 | . 2 Largest Inventory Capacity 20 | 8 20 Average Capacity 18 | 7 19 Most Carried 20 | 8 20 Average Carried 14 | 2 15 Final Capacity 20 | 8 20 Final Carried 16 | 8 16 Class Distribution -------------------- 92% | Mutant 7% | Scavenger-Mutant Dominant Class ---------------- Mutant | -10/Materials Resources | -11 -10 ----------- Run | Yrd Mat Matter Collected 762 | 306 456 Remotely . | . . Salvage Created 661 | 115 546 Parts 51 | 9 42 Haulers Intercepted 1 | . 1 Recyclers Shooed 1 | . 1 Parts Field Recycled . | . . Retrieved Matter . | . . Parts Self-Destructed . | . . Prevented . | . . Parts Restored . | . . Kills | -11 -10 ------- Run | Yrd Mat Combat Hostiles Destroyed 13 | . 13 Guns 13 | . 13 Classes Destroyed 7 | 2 5 Worker 1 | . 1 Builder 1 | . 1 Tunneler 2 | 2 . Hauler 1 | . 1 Recycler 1 | 1 . Swarmer 3 | . 3 Grunt 10 | . 10 Best Kill Streak 6 | 2 6 Combat Bots Only 5 | . 5 Max Kills in Single Turn 1 | 1 1 Gunslinging . | . . Exploded . | . . Melee . | . . Uniques/NPCs Destroyed . | . . Combat | -11 -10 -------- Run | Yrd Mat Hostile Shots Fired 99 | . 99 Missed 21 | . 21 Hits 78 | . 78 Projectile 78 | . 78 Damage Taken 1058 | . 1058 Core 256 | . 256 Absorbed by Shields . | . . Core Remaining (%) 100 | 100 . Volleys Fired 57 | 12 45 Largest 2 | 1 2 Hottest 85 | 20 85 Shots Fired 103 | 12 91 Gun 103 | 12 91 Cannon . | . . Launcher . | . . Special . | . . Kinetic 93 | 12 81 Thermal 10 | . 10 Explosive . | . . Electromagnetic . | . . Robot Hit Streak 10 | 6 10 Robot Miss Streak 3 | 3 3 Penetration Max . | . . Secondary Targets 2 | . 2 Max Gunslinging Chain 1 | . 1 Shots Hit Robots 68 | 8 60 Core Hits 33 | 4 29 Critical Kills . | . . Critical Parts Destroyed . | . . Critical Strikes . | . . Melee Attacks . | . . Impact . | . . Slashing . | . . Piercing . | . . Sneak Attacks . | . . Combat Hostiles . | . . Follow-up Attacks . | . . Damage Inflicted 809 | 106 703 Guns 781 | 106 675 Cannons . | . . Explosions . | . . Melee . | . . Ramming 28 | . 28 Kinetic 687 | 106 581 Thermal 94 | . 94 Explosive . | . . Electromagnetic . | . . Impact . | . . Slashing . | . . Piercing . | . . Highest Corruption 9 | . 9 Average Corruption 1 | . 1 Corruption Purged . | . . Corruption Blocked . | . . Effects 8 | . 8 Matter Fused 1 | . 1 Heat Flow Errors 2 | . 2 Energy Discharges 1 | . 1 Parts Fused 1 | . 1 Data Loss (minor) 2 | . 2 Misfires 1 | . 1 Overload Shots . | . . Overflow Damage 12 | . 12 Projectiles . | . . Explosions . | . . Melee 12 | . 12 Knockbacks . | . . Impact . | . . Kinetic . | . . Secondary . | . . Self-Inflicted Damage 13 | . 13 Shots . | . . Rammed 2 | . 2 Targets Rammed 2 | . 2 Kicked . | . . Crushed . | . . Highest Temperature 174 | . 174 Average Temperature 30 | . 30 Received Heat Transfer 444 | . 444 Siege Activations . | . . Martial Activations . | . . Shielding Activations . | . . Robots Disrupted . | . . Combat Hostiles . | . . Robots Corrupted 1 | . 1 Combat Hostiles . | . . Parts Fried 1 | . 1 Impact Corruptions 1 | . 1 Robots Melted . | . . Combat Hostiles . | . . Parts Melted . | . . Heat Transferred 222 | . 222 Parts Sabotaged . | . . Parts Stolen . | . . Parts Stripped . | . . Power Chain Reactions . | . . Alert | -11 -10 ------- Run | Yrd Mat Maximum Alert Level . | . . Low Security (%) 100 | 100 100 Level 1 . | . . Level 2 . | . . Level 3 . | . . Level 4 . | . . Level 5 . | . . High Security . | . . Max Security . | . . Peak Influence 169 | 10 169 Initial . | . . Average 43 | 1 48 Influence Increases 382 | 15 367 Destroy 0b10 Robot/C 260 | . 260 Destroy 0b10 Robot/NC 30 | 15 15 Destroy Leader 52 | . 52 Successful Hack 10 | . 10 Lose Combat Pursuer 30 | . 30 Influence Decreases 325 | 15 310 Time Decay 245 | 15 230 Lost Part 80 | . 80 Squads Dispatched 4 | . 4 Investigation 1 | . 1 Extermination . | . . Reinforcement 3 | . 3 Assault . | . . Garrison . | . . Intercept . | . . Searches Triggered . | . . Construction Impeded . | . . Haulers Reinforced . | . . Active Scanning Responses . | . . Cargo Convoy Interrupts . | . . Stealth | -11 -10 --------- Run | Yrd Mat Distress Signals 2 | . 2 Communications Jammed . | . . Distress Signals . | . . Times Spotted 24 | . 24 Peak Tracking Total 7 | . 7 Tactical Retreats 1 | . 1 Traps | -11 -10 ------- Run | Yrd Mat Traps Triggered 7 | . 7 Indirectly . | . . Trap Hack Attempts . | . . Triggered . | . . Disarmed . | . . Reprogrammed . | . . Reused . | . . Traps Extracted . | . . Installed . | . . Triggered . | . . Machines | -11 -10 ---------- Run | Yrd Mat Machines Disabled . | . . Max in Single Turn . | . . Machines Repaired . | . . Machines Dismantled . | . . Machines Sabotaged . | . . Overloaded Fab Kills . | . . Hacking | -11 -10 --------- Run | Yrd Mat Machines Accessed 2 | . 2 Terminals 2 | . 2 Fabricators . | . . Repair Stations . | . . Recycling Units . | . . Scanalyzers . | . . Garrison Access . | . . Total Hacks 2 | . 2 Successful 2 | . 2 Failed . | . . Catastrophic . | . . Database Lockouts . | . . Manual . | . . Terminals 2 | . 2 Fabricators . | . . Repair Stations . | . . Recycling Units . | . . Scanalyzers . | . . Garrison Access . | . . Terminal Hacks 2 | . 2 Prototype ID Bank 2 | . 2 Fabricator Hacks . | . . Repair Station Hacks . | . . Recycling Unit Hacks . | . . Scanalyzer . | . . Garrison Access Hacks . | . . Unauthorized Hacks . | . . Terminals . | . . Fabricators . | . . Repair Stations . | . . Recycling Units . | . . Scanalyzers . | . . Garrison Access . | . . Data Cores Recovered . | . . Used . | . . Hacking Detections 2 | . 2 Full Trace Events . | . . Feedback Events . | . . Feedback Blocked . | . . Robot Schematics Acquired . | . . Robots Built . | . . Authchips . | . . Time . | . . Total Robot Build Rating . | . . Part Schematics Acquired . | . . Parts Built . | . . Authchips . | . . Time . | . . Total Part Build Rating . | . . Part Studies Acquired . | . . Parts Repaired . | . . Time . | . . Parts Recycled . | . . Recycled Matter . | . . Retrieved Matter . | . . Retrieved Components . | . . Parts Scanalyzed . | . . Part Schematics Acquired . | . . Parts Damaged . | . . Bothacking | -11 -10 ------------ Run | Yrd Mat Used RIF Installer . | . . Robots Hacked . | . . Non-combat . | . . Combat . | . . Robot Hacks Applied . | . . Relay Couplers Released . | . . Fabnet Peak Effective % . | . . Robots Rewired . | . . Allies Hacked . | . . Hacks Repelled . | . . Allies | -11 -10 -------- Run | Yrd Mat Total Allies . | . . Largest Group . | . . Highest-Rated Group . | . . Highest-Rated Ally . | . . Total Orders . | . . Ally Attacks . | . . Total Damage . | . . Kills . | . . Allies Corrupted . | . . Allies Melted . | . . Intel | -11 -10 ------- Run | Yrd Mat Active Infowar (turns) 934 | 8 926 Seismic 934 | 8 926 Robot Analysis Total . | . . Derelict Logs Recovered . | . . Drone Launches . | . . Drone Recoveries . | . . Exploration | -11 -10 ------------- Run | Yrd Mat Turns Passed 1569 | 138 1431 Spaces Moved 700 | 91 609 Core 8 | 8 . Treads 5 | . 5 Legs . | . . Wheels 687 | 83 604 Hover . | . . Flight . | . . Fastest Speed 50 | 50 80 Average Speed 119 | 77 125 Slowest Speed 240 | 80 240 Overloaded Moves . | . . Propulsion Burnouts . | . . Robots Hopped . | . . Potential Cave-ins . | . . Cave-ins Triggered . | . . Exploration Rate (%) 47 | 4 90 Regions Visited 1 Branch Regions . Pre-discovered Areas . | . . Known Exits Taken . | . . Unknown Exits Taken 1 | 1 . Scrap Searched . | . . Spaces Dug . | . . Terrain Destroyed . | . . Melee . | . . Projectile . | . . AOE . | . . Terrain Rammed . | . . Walls Destroyed . | . . Machines Disabled . | . . Actions | -11 -10 --------- Run | Yrd Mat Total 1335 | 143 1192 Wait 522 | 25 497 Move 699 | 90 609 Hop . | . . Pick Up 27 | 9 18 Fast Attach 8 | 6 2 Attach 9 | 1 8 Detach . | . . Swap 4 | . 4 Drop 7 | . 7 Fire 57 | 12 45 Melee . | . . Ram 1 | . 1 Kick . | . . Crush 1 | . 1 Escape Stasis . | . . Rewire . | . . Trap . | . . Miscellaneous . | . . Route ------- -11/Scrapyard -10/Materials (discovered 4 exits: [*Mat x3] / [*Min]) History --------- Turn | Location | Event 7 | -11/Scrapyard | Discovered new exit (range 15) 139 | -11/Scrapyard | Entered Materials 312 | -10/Materials | Build established: Mutant 531 | -10/Materials | Discovered new exit (range 16) 697 | -10/Materials | Discovered new exit (range 16) 839 | -10/Materials | Derelicts attacked the area 1090 | -10/Materials | Discovered new exit (range 16) 1447 | -10/Materials | Discovered new exit (range 10) 1477 | -10/Materials | Core integrity fell below 50% 1515 | -10/Materials | Lost 3 parts (1p1n1w) 1570 | -10/Materials | Destroyed by exploding Nuclear Reactor Last Messages --------------- 01504_ Dropped Mining Claw. 01510_ Acquired Aluminum Leg. 01520_ System corrupted: FCS attempts to trigger Particle Gun. 01520_ System corrupted: Particle Gun misfires. 01535_ Triggered Shock Trap. 01535_ The floor emits a surge of raw power. 01535_ System corrupted (+2). 01537_ Triggered Shock Trap. 01537_ The floor emits a surge of raw power. 01537_ System corrupted (+2). 01544_ System corrupted: Matter fused (-9). 01557_ K-01 Serf cleans the Nuclear Reactor. 01570_ Triggered EMP Trap. 01570_ A bubble of electromagnetic force engulfs the area. 01570_ EMP Trap short circuited. 01570_ A bubble of electromagnetic force engulfs the area. 01570_ Nuclear Reactor explodes. 01570_ Wheel destroyed. 01570_ Nuclear Reactor explodes. 01570_ Lgt. Assault Rifle destroyed. Map ----- +----------------------------------------------------+ | #?????????########### #??? ???????????????# | | #?????????# # #??? ???????????????# | | #?????????# # #?? """ ??????????????# | | ??????????# # #?? " """ ??????????????# | | ??????????# + +?"Y" """ #?????????????# | | #?????????# # #?""" #?????????????# | | #?????????# # ###?##???##??????######## | | #?????????# # #????????????????# | | #?????????# # #????????????????# | | ##????????#####/##### +????????????????# | | #????????????# #???# #?????????######## ##### | | +????????????# #???# #?????????# # #???? | | #????????????# #?? ?????????#""" # #???? | | #####?????????# #??" ?????????#""" + #???? | | #?????????# #?|| ?????????#""" # #???? | | ########### #?"" < #????????# # #???? | | * #?!! #????????# [ # #???? | | [ ########### #??" ################# #???? | | [[ #?????????#%#??? ??# ## #???? | | #?????????# #???# ??# ## #???? | | ########### #???# #?# """"" """ ## #???? | | ## # #???# ###*""""" """ ## #???? | | ## """"" # #??## # """"" """ ## #???? | | T" ## """"" # #### =!= ## ##??? | | "" ## """"" #%u ########+### #??? | | ###### # @ #??? | | ###### """"" [+ %& k T #??? | | ## """"" # """ #??? | | ! ## """"" =# """ #### #??? | | =! ##! = =# """ #??#######??? | | ############### #???????????? | | ######### #?########### | | # T [ ## """ """ """ #?# # | | # # """ """ """ #?# # | | # """ # """ """ """ #?# "# "" | | # """ + #?# T# "" | | +[ """ # #?# "# "" | | # # ####### #?# # | | # # ## # ######+###### | | #######+###+## ## # | | ??????# ## + | | ??????# + ! # | | ??????# ## ###########+############# | | ??????#####+######## #???????# #????????? | | ??????# #??# #???????# """ #????????? | | ??????# "" #??# ] #???????# """ #????????? | | ??????# "Y #??# #???????# """ #????????? | | ??????# "" #??# #???????# #????????? | | ??????# #??# #???????# #????????? | | ??????#] """ #??# #???????########????????? | +----------------------------------------------------+ Best States ------------- Heat Dissipation 39 Energy Generation 10 Energy Capacity 250 Matter Stores 300 Matter Capacity 300 Sight Range 16 Terrain Scan Density 10 Evasion (%) 50 Recoil Reduction 2 Item Schematics ----------------- None Robot Schematics ------------------ None Fabricated ------------ Nothing Repaired ---------- Nothing Studied --------- None Alien Tech Used ----------------- None Achievements -------------- None Challenges ------------ None Game ------ Seed ArcSuperchargedScythe Manual? 0 Play Time 00:22:24 Cumulative 178.0 hours Start 2026.07.31 @ 21:15:16 End 2026.07.31 @ 21:36:30 Sessions 1 Manual Loads 0 Difficulty Rogue Special Mode None Game No. 24 Rogue 12 Adventurer 5 Explorer 7 Win Type - Total 9 Types 8/0/1/0/0/0/0/0/0/0 Lore% 49 Gallery% 59 Achievement% 42 Wizard Run 0 Options --------- Layout 0 ASCII 0 Keyboard 0 Movement Arrows Keybinds 0 Fullscreen 1 Font 18/Smallcaps Map View 76x50 Zoom Use 0% Tactical HUD 1 Map Filters NONE Filters NONE Steam 1 RUN: 1fa34004-b0f7-4d5e-9373-04cf79f7c7b7